Cogmind - Beta 14 @@@ ROGUE MODE // 2024.08.30 @ 14:40:31 Player: upsidedowneye Result: Destroyed by Y-45 Defender with Beam Rifle Performance ------------- Evolutions (2) 1000 Regions Visited (4) 800 Robots Destroyed (48) 240 Value Destroyed (1353) 1353 Prototype IDs (0) 0 Alien Tech Used (0) 0 Bonus (-45) -45 TOTAL SCORE: 3348 Bonus ------- Follower Combat Kills 7 Friendly Fire -52 Cogmind --------- Core Integrity 0/550 Matter 159/300 Energy 99/100 System Corruption 0% Temperature Cool (65) Movement Core (50) Location -8/Materials Parts ------- > --- POWER (1) -------- (None) > --- PROPULSION (2) --- (None) > --- UTILITY (6) ------ Corruption Screen Corruption Screen Corruption Screen > --- WEAPON (2) ------- (None) > --- INVENTORY (5) ---- Light Nuclear Core Carbon-fiber Leg Huge Storage Unit Peak State ------------ > --- POWER ------------ Deuterium Engine > --- PROPULSION ------- Improved Titanium Leg Improved Titanium Leg > --- UTILITY ---------- Subdweller Optics Targeting Computer Makeshift Hacking Suite Corruption Screen Corruption Screen Corruption Screen > --- WEAPON ----------- Riot Gun Flamer > --- INVENTORY -------- Light Ion Engine Corruption Screen Mini Grenade Launcher [Rating: 35] Favorites ----------- Power Light Ion Engine Engine Light Ion Engine Propulsion Wheel Leg Improved Titanium Leg Wheel Wheel Utility Scrap Shield Device Subdweller Optics Storage Large Storage Unit Processor Corruption Screen Hackware Makeshift Hacking Suite Protection Scrap Shield Weapon Grenade Launcher Energy Gun Riot Gun Ballistic Gun Light Assault Rifle Ballistic Cannon Battle Cannon Launcher Grenade Launcher Special Weapon Flamer Build | -11 -10 -10 -10 -8 ------- Run | Yrd Mat Min Sub Mat Slots Evolved 4 | . . . . 4 Power . | . . . . . Propulsion . | . . . . . Utility 4 | . . . . 4 Weapon . | . . . . . Parts Attached 39 | 7 3 5 10 14 Power 7 | 1 1 . 3 2 Engine 7 | 1 1 . 3 2 Core . | . . . . . Reactor . | . . . . . Propulsion 12 | 3 2 2 3 2 Treads . | . . . . . Leg 2 | . . . . 2 Wheel 10 | 3 2 2 3 . Hover . | . . . . . Flight . | . . . . . Utility 11 | 1 . 1 4 5 Device 1 | . . . 1 . Storage 2 | 1 . 1 . . Processor 5 | . . . . 5 Hackware 1 | . . . 1 . Protection 2 | . . . 2 . Artifact . | . . . . . Weapon 9 | 2 . 2 . 5 Energy Gun 2 | . . . . 2 Energy Cannon . | . . . . . Ballistic Gun 3 | 2 . . . 1 Ballistic Cannon 1 | . . 1 . . Launcher 2 | . . 1 . 1 Special Weapon 1 | . . . . 1 Impact Weapon . | . . . . . Slashing Weapon . | . . . . . Piercing Weapon . | . . . . . Special Melee Weapon . | . . . . . Unidentified Prototypes . | . . . . . Parts Lost 22 | . 4 . 3 15 Power 4 | . 1 . 1 2 Propulsion 5 | . 2 . 1 2 Utility 5 | . . . 1 4 Weapon 8 | . 1 . . 7 Highest Loss Streak 15 | . 4 . 2 15 To Critical Strikes . | . . . . . Average Slot Usage (%) 83 | . 82 84 81 88 Engine 11 | . 14 14 10 8 Leg 1 | . . . . 13 Wheel 25 | . 27 28 27 2 Device 1 | . . . . 8 Storage 5 | . 14 14 . . Processor 3 | . . . . 31 Hackware 1 | . . . . 7 Protection 6 | . . . 12 . Ballistic Gun 1 | . 26 . . . Ballistic Cannon 12 | . . 13 14 6 Launcher 12 | . . 13 14 7 Peak Build Rating 35 | 6 6 8 14 35 Average Rating 11 | 5 5 7 12 28 On Entrance 6 | . 6 5 8 14 Naked Turns . | . . . . . Heaviest Build 29 | 11 11 29 29 17 Greatest Support 40 | 26 20 20 40 40 Greatest Overweight (x) 1 | . 1 1 1 1 Average Overweight (x) . | . . . . . Largest Inventory Capacity 15 | 8 8 15 15 5 Average Capacity 8 | 7 8 13 5 5 Most Carried 15 | 6 5 12 15 5 Average Carried 5 | 2 4 9 4 3 Final Capacity 15 | 8 8 15 5 5 Final Carried 12 | 4 2 12 3 3 Class Distribution -------------------- 50% | Mutant 43% | Subdweller-Mutant 3% | Scavenger-Mutant Dominant Class ---------------- Mutant | -10/Materials Mutant | -10/Mines Subdweller-Mutant | -10/Subcaves Mutant | -8/Materials Resources | -11 -10 -10 -10 -8 ----------- Run | Yrd Mat Min Sub Mat Matter Collected 1265 | 352 99 142 470 202 Remotely . | . . . . . Salvage Created 1364 | 205 230 26 303 600 Parts 84 | 15 5 8 25 31 Haulers Intercepted 1 | . . . . 1 Recyclers Shooed 2 | 1 . . . 1 Parts Field Recycled . | . . . . . Retrieved Matter . | . . . . . Parts Self-Destructed 12 | . . . 12 . Prevented . | . . . . . Kills | -11 -10 -10 -10 -8 ------- Run | Yrd Mat Min Sub Mat Combat Hostiles Destroyed 31 | . 4 5 10 12 Guns 3 | . 2 . . 1 Cannons 11 | . . 2 5 4 AOE 17 | . 2 3 5 7 Classes Destroyed 12 | 3 1 1 3 4 Worker 2 | 2 . . . . Builder 3 | . . . . 3 Tunneler 5 | 5 . . . . Hauler 1 | . . . . 1 Recycler 3 | 1 1 . . 1 Operator 1 | . . . . 1 Watcher 2 | . . . . 2 Swarmer 5 | . . 5 . . Grunt 15 | . 4 . . 11 Sentry 2 | . . . 1 1 Artisan 1 | . . . 1 . Subdweller 9 | . . . 9 . Best Kill Streak 13 | 5 2 3 6 13 Combat Bots Only 7 | . 2 3 6 7 Max Kills in Single Turn 4 | 1 2 2 3 4 Gunslinging . | . . . . . Exploded 3 | . 2 2 3 3 Melee . | . . . . . Uniques/NPCs Destroyed . | . . . . . Combat | -11 -10 -10 -10 -8 -------- Run | Yrd Mat Min Sub Mat Hostile Shots Fired 239 | . 40 21 39 139 Missed 83 | . 10 11 17 45 Damage Taken 2580 | . 451 84 522 1523 Core 795 | . 104 15 117 559 Absorbed by Shields . | . . . . . Core Remaining (%) 52 | 100 . . 5 . Volleys Fired 163 | 22 21 11 53 56 Largest 2 | 2 2 2 2 2 Hottest 150 | 40 40 69 69 150 Shots Fired 225 | 44 42 16 61 62 Gun 103 | 44 42 . . 17 Cannon 103 | . . 11 54 38 Launcher 16 | . . 5 7 4 Special 3 | . . . . 3 Kinetic 192 | 44 42 11 54 41 Thermal 9 | . . . . 9 Explosive 16 | . . 5 7 4 Electromagnetic 8 | . . . . 8 Robot Hit Streak 10 | 5 7 1 9 10 Robot Miss Streak 4 | 4 2 3 3 3 Penetration Max . | . . . . . Secondary Targets 1 | . 1 . . . Max Gunslinging Chain 1 | . 1 . . . Shots Hit Robots 137 | 21 29 2 43 42 Core Hits 89 | 10 10 6 23 40 Critical Kills . | . . . . . Critical Parts Destroyed . | . . . . . Critical Strikes 2 | . . . 1 1 Blast 2 | . . . 1 1 Melee Attacks . | . . . . . Impact . | . . . . . Slashing . | . . . . . Piercing . | . . . . . Sneak Attacks . | . . . . . Combat Hostiles . | . . . . . Follow-up Attacks . | . . . . . Damage Inflicted 4014 | 225 522 200 1164 1903 Guns 758 | 225 316 . . 217 Cannons 1352 | . . 51 719 582 Explosions 1893 | . 206 149 445 1093 Melee . | . . . . . Ramming . | . . . . . Kinetic 1921 | 225 316 51 719 610 Thermal 232 | . . . . 232 Explosive 1718 | . 206 149 445 918 Electromagnetic 143 | . . . . 143 Impact . | . . . . . Slashing . | . . . . . Piercing . | . . . . . Highest Corruption 1 | . 1 1 1 . Average Corruption 1 | . 1 1 1 . Corruption Purged . | . . . . . Corruption Blocked . | . . . . . Effects 28 | . 1 13 14 . Message Errors 4 | . . 3 1 . Matter Fused 9 | . . 3 6 . Heat Flow Errors 3 | . . 1 2 . Energy Discharges 5 | . 1 3 1 . Data Loss (minor) 1 | . . 1 . . Data Loss (major) 1 | . . 1 . . Misfires 2 | . . . 2 . Alerts 3 | . . 1 2 . Overload Shots . | . . . . . Overflow Damage 69 | . 5 30 . 34 Projectiles 8 | . . . . 8 Explosions 61 | . 5 30 . 26 Melee . | . . . . . Knockbacks 14 | . . . 9 5 Impact . | . . . . . Kinetic 14 | . . . 9 5 Secondary . | . . . . . Self-Inflicted Damage 201 | . 101 . 36 64 Shots 4 | . 1 . 1 2 Rammed . | . . . . . Targets Rammed . | . . . . . Kicked . | . . . . . Crushed . | . . . . . Highest Temperature 297 | . 21 172 228 297 Average Temperature 94 | . 8 34 112 148 Received Heat Transfer 1023 | . 198 . 60 765 Effects 3 | . . . . 3 Energy Bleed 1 | . . . . 1 Interference 2 | . . . . 2 Siege Activations . | . . . . . Robots Corrupted . | . . . . . Combat Hostiles . | . . . . . Parts Fried . | . . . . . Impact Corruptions . | . . . . . Robots Melted . | . . . . . Combat Hostiles . | . . . . . Parts Melted . | . . . . . Heat Transferred 441 | . . . . 441 Parts Sabotaged . | . . . . . Parts Stolen . | . . . . . Parts Stripped . | . . . . . Power Chain Reactions 1 | . . . . 1 Alert | -11 -10 -10 -10 -8 ------- Run | Yrd Mat Min Sub Mat Peak Influence 326 | 40 179 194 . 326 Initial 69 | . 26 69 . . Average 60 | 17 73 59 . 76 Maximum Alert Level 1 | . . . . 1 Low Security (%) 96 | 100 100 100 . 84 Level 1 3 | . . . . 15 Level 2 . | . . . . . Level 3 . | . . . . . Level 4 . | . . . . . Level 5 . | . . . . . High Security . | . . . . . Max Security . | . . . . . Squads Dispatched 2 | . 1 . . 1 Investigation 1 | . 1 . . . Extermination . | . . . . . Reinforcement 1 | . . . . 1 Assault . | . . . . . Garrison . | . . . . . Intercept . | . . . . . Searches Triggered . | . . . . . Construction Impeded 1 | . . . . 1 Haulers Reinforced . | . . . . . Active Scanning Responses . | . . . . . Cargo Convoy Interrupts . | . . . . . Stealth | -11 -10 -10 -10 -8 --------- Run | Yrd Mat Min Sub Mat Distress Signals 2 | . . . . 2 Communications Jammed . | . . . . . Distress Signals . | . . . . . Times Spotted 54 | . 6 6 20 22 Peak Tracking Total 8 | . 2 3 5 8 Tactical Retreats 1 | . . . . 1 Traps | -11 -10 -10 -10 -8 ------- Run | Yrd Mat Min Sub Mat Traps Triggered . | . . . . . Indirectly . | . . . . . Trap Hack Attempts . | . . . . . Triggered . | . . . . . Disarmed . | . . . . . Reprogrammed . | . . . . . Reused . | . . . . . Traps Extracted . | . . . . . Installed . | . . . . . Triggered . | . . . . . Machines | -11 -10 -10 -10 -8 ---------- Run | Yrd Mat Min Sub Mat Machines Disabled 4 | . 2 2 . . Max in Single Turn 2 | . 2 2 . . Machines Repaired . | . . . . . Machines Dismantled . | . . . . . Machines Sabotaged . | . . . . . Overloaded Fab Kills . | . . . . . Hacking | -11 -10 -10 -10 -8 --------- Run | Yrd Mat Min Sub Mat Machines Accessed 4 | . 2 . 1 1 Terminals 3 | . 2 . . 1 Fabricators . | . . . . . Repair Stations . | . . . . . Recycling Units . | . . . . . Scanalyzers . | . . . . . Garrison Access . | . . . . . Total Hacks 13 | . 5 . 4 4 Successful 8 | . 2 . 4 2 Failed 5 | . 3 . . 2 Catastrophic 2 | . 2 . . . Database Lockouts . | . . . . . Manual . | . . . . . Terminals 9 | . 5 . . 4 Fabricators . | . . . . . Repair Stations . | . . . . . Recycling Units . | . . . . . Scanalyzers . | . . . . . Garrison Access . | . . . . . Terminal Hacks 8 | . 2 . 4 2 Record 4 | . . . 4 . Robot Analysis 1 | . . . . 1 Branch Access Points 1 | . 1 . . . Hauler Manifests 2 | . 1 . . 1 Fabricator Hacks . | . . . . . Repair Station Hacks . | . . . . . Recycling Unit Hacks . | . . . . . Scanalyzer . | . . . . . Garrison Access Hacks . | . . . . . Unauthorized Hacks . | . . . . . Terminals . | . . . . . Fabricators . | . . . . . Repair Stations . | . . . . . Recycling Units . | . . . . . Scanalyzers . | . . . . . Garrison Access . | . . . . . Data Cores Recovered . | . . . . . Used . | . . . . . Hacking Detections 2 | . 2 . . . Full Trace Events 2 | . 2 . . . Feedback Events 1 | . 1 . . . Corruption 1 | . 1 . . . Feedback Blocked . | . . . . . Robot Schematics Acquired . | . . . . . Robots Built . | . . . . . Authchips . | . . . . . Time . | . . . . . Total Robot Build Rating . | . . . . . Part Schematics Acquired . | . . . . . Parts Built . | . . . . . Authchips . | . . . . . Time . | . . . . . Total Part Build Rating . | . . . . . Parts Repaired . | . . . . . Time . | . . . . . Parts Recycled . | . . . . . Recycled Matter . | . . . . . Retrieved Matter . | . . . . . Retrieved Components . | . . . . . Parts Scanalyzed . | . . . . . Part Schematics Acquired . | . . . . . Parts Damaged . | . . . . . Bothacking | -11 -10 -10 -10 -8 ------------ Run | Yrd Mat Min Sub Mat Used RIF Installer . | . . . . . Robots Hacked . | . . . . . Non-combat . | . . . . . Combat . | . . . . . Robot Hacks Applied . | . . . . . Relay Couplers Released . | . . . . . Fabnet Peak Effective % . | . . . . . Robots Rewired . | . . . . . Allies Hacked . | . . . . . Hacks Repelled . | . . . . . Allies | -11 -10 -10 -10 -8 -------- Run | Yrd Mat Min Sub Mat Total Allies 1 | . . 1 . . Largest Group 1 | . . 1 . . Highest-Rated Group 31 | . . 31 . . Highest-Rated Ally 31 | . . 31 . . Total Orders . | . . . . . Ally Attacks 3 | . . 3 . . Total Damage 42 | . . 42 . . Kills 1 | . . 1 . . Allies Corrupted . | . . . . . Allies Melted . | . . . . . Intel | -11 -10 -10 -10 -8 ------- Run | Yrd Mat Min Sub Mat Robot Analysis Total 1 | . . . . 1 Derelict Logs Recovered 3 | . . 2 1 . Drone Launches . | . . . . . Drone Recoveries . | . . . . . Exploration | -11 -10 -10 -10 -8 ------------- Run | Yrd Mat Min Sub Mat Turns Passed 3682 | 154 179 1068 1907 374 Spaces Moved 2978 | 83 144 932 1642 177 Core 17 | 4 . . . 13 Treads . | . . . . . Legs 125 | . . . . 125 Wheels 2836 | 79 144 932 1642 39 Hover . | . . . . . Flight . | . . . . . Fastest Speed 50 | 50 80 80 95 50 Average Speed 100 | 84 80 92 106 120 Slowest Speed 130 | 100 95 95 120 130 Overloaded Moves . | . . . . . Propulsion Burnouts . | . . . . . Robots Hopped . | . . . . . Cave-ins Triggered . | . . . . . Exploration Rate (%) 41 | 5 23 94 69 18 Regions Visited 4 Branch Regions 2 Pre-discovered Areas 1 | . . . 1 . Known Exits Taken 2 | . 1 . 1 . Unknown Exits Taken 2 | 1 . 1 . . Scrap Searched 1 | . . 1 . . Spaces Dug 17 | . . 17 . . Terrain Destroyed 147 | . 53 30 35 29 Melee . | . . . . . Projectile 6 | . . 2 1 3 AOE 141 | . 53 28 34 26 Terrain Rammed . | . . . . . Walls Destroyed . | . . . . . Machines Disabled . | . . . . . Actions | -11 -10 -10 -10 -8 --------- Run | Yrd Mat Min Sub Mat Total 3447 | 127 170 1124 1754 272 Wait 185 | . . 163 12 10 Move 2974 | 82 143 931 1641 177 Hop . | . . . . . Pick Up 56 | 13 2 12 16 13 Fast Attach . | . . . . . Attach 30 | 6 3 2 8 11 Detach 2 | . . 1 1 . Swap 9 | 1 . 3 2 3 Drop 28 | 3 1 1 21 2 Fire 163 | 22 21 11 53 56 Melee . | . . . . . Ram . | . . . . . Kick . | . . . . . Crush . | . . . . . Escape Stasis . | . . . . . Rewire . | . . . . . Trap . | . . . . . Miscellaneous . | . . . . . Route ------- -11/Scrapyard -10/Materials -10/Mines (discovered 3 exits: [*Mat x2] / *Sub) -10/Subcaves (discovered 3 exits: *Mat x2 / Rec) -8/Materials (discovered 2 exits: Fac x2) History --------- Turn | Location | Event 22 | -11/Scrapyard | Discovered new exit (range 15) 155 | -11/Scrapyard | Entered Materials 219 | -10/Materials | Identified exit to Mines 307 | -10/Materials | Build established: Mutant 334 | -10/Materials | Entered Mines 342 | -10/Mines | Lost 4 parts (1p2n1w) 353 | -10/Mines | A weapon hastily lodged in a ceiling crevice suddenly fell to the ground 471 | -10/Mines | Found DCF Scrap (13 items) 518 | -10/Mines | Discovered new exit (range 13) 545 | -10/Mines | Discovered new exit (range 9) 772 | -10/Mines | Learned 2 Materials zone layouts 793 | -10/Mines | Learned location of 2 exits from Materials 801 | -10/Mines | Received a Mining Laser from a helpful Derelict 1395 | -10/Mines | Discovered new exit (range 4) 1402 | -10/Mines | Entered Subcaves 1441 | -10/Subcaves | Core integrity fell below 50% 1492 | -10/Subcaves | Ambushed by swarm of Subdwellers 1495 | -10/Subcaves | Ambushed by Subdwellers from Twisted Machinery 1495 | -10/Subcaves | Ambushed by Subdwellers from Twisted Machinery 1501 | -10/Subcaves | Ambushed by Subdwellers from Twisted Machinery 1501 | -10/Subcaves | Ambushed by Subdwellers from Twisted Machinery 1636 | -10/Subcaves | Discovered new exit (range 8) 1771 | -10/Subcaves | A swath of the cavern ceiling suddenly collapsed 1777 | -10/Subcaves | Shifting Twisted Machinery released Scrap Shield 1792 | -10/Subcaves | Shifting Twisted Machinery released Sub. Optics 1826 | -10/Subcaves | Build established: Subdweller-Mutant 2336 | -10/Subcaves | Shifting Twisted Machinery released Sub. Beam Cannon 2424 | -10/Subcaves | Shifting Twisted Machinery released Sub. Optics 2464 | -10/Subcaves | Visited Clippyterm 2467 | -10/Subcaves | Identified exit to Recycling 2467 | -10/Subcaves | Identified exit to Materials 2467 | -10/Subcaves | Learned location of Deep Caves (-7) 2538 | -10/Subcaves | A swath of the cavern ceiling suddenly collapsed 2757 | -10/Subcaves | Core integrity fell below 20% 3309 | -10/Subcaves | Entered Materials 3309 | -8/Materials | Evolved 4 slots: Utility x4 3310 | -8/Materials | Identified exit to Factory 3658 | -8/Materials | Core integrity fell below 50% 3671 | -8/Materials | Destroyed 7 combat bots 3673 | -8/Materials | Core integrity fell below 20% 3680 | -8/Materials | Build established: Mutant 3683 | -8/Materials | Destroyed by Y-45 Defender with Beam Rifle Last Messages --------------- G-47 Trooper overheating. Acquired Lgt. Nuclear Core. G-47 Trooper overheating. Acquired 46 matter. G-47 Trooper heat damages Broken Aluminum Leg, Broken Lgt. Nuclear Core, Particle Gun. Y-45 Defender suffers critical hit (Burn). G-47 Trooper overheating. U-05 Engineer builds a Wall. U-05 Engineer lays Concrete. Acquired Carbon-fiber Leg. G-47 Trooper overheating. K-01 Serf collects debris. G-47 Trooper overheating. U-05 Engineer lays Concrete. Acquired data core, dynamic key expired. G-47 Trooper overheating. U-05 Engineer lays Concrete. Acquired 48 matter. G-47 Trooper overheating. Map ----- +----------------------------------------------------+ | ???????????????????????????????????????# #?# #???? | | ???????????????????????????????????????# ######### | | ???????????????????????????????????????# ## | | ???????????????????????????????????????# ## | | ??????????????????????????????????????## ## | | ?????????????????????????????????????? # | | ?????????????????????????????????????? + | | ?????????????????????????????????????? # | | ?????????????????????????????????????????????????? | | ?????????????????????????????????????????????????? | | ?????????????????????????????????????????????????? | | ??????????????????????#+##+#?????????????????????? | | ??????????????????????# #?????????????????????? | | ????????????????????### u##????????????????????? | | ????????????????????# #????????????????????? | | ??????????????????### % ?????????????????????? | | ?????????????????? %%[ ????+????????????????? | | ??????????????????? = ##??? ????????????????? | | ???????????????????? #??? ????????????????? | | ????????????????????? ???? ????????????????? | | ???????????????####### #???? #???????????????? | | ???????????????# ! # g #???? #???????????????? | | ???????????????# # % #???? #???????????????? | | ???????????????# #%/* #????%#???????????????? | | ???????????????# # #???? #???????????????? | | ???????????????# "T" =+% @=#???# #???????????????? | | ???????????????# """ ! =#???# #???????????????? | | ?????????????####### % ###### #???????????????? | | ?????????????# gY =! #???????????????? | | ?????????????+ !%k*%! #???????????????? | | ????????????## "" !Y==! " " %%#??????????????## | | ?????????????# S"" "" #??????????????# | | ?????????????? "" """ % #??????######### | | ?????????????? # # ! "" %#??????#! ]##% | | ?????????????## ####### % "" #??????# ## | | ??????????????##??????# ######## """ ## | | ??????????????????????# ] ## """ ## | | ??????????????????????# % #####+##### ## """ ## | | ??????????????????????# %## ##%## ## | | ??????????????????????#+##+## # ###+##### | | ?????????????????????# ???# "" # T | | ?????????????????????# "???# S"" ] # ### ##### | | ?????????????????????# ?"???# "" #####?# #???# | | ?????????????????????# ?????############### #???# | | ?????????????????????# ?????? #?###+ | | ?????????????????????#?????????? #?# | | ??????????????????????????????????? #?#""" | | ?????????????????????????????????????# #?#""" | | ?????????????????????????????????????# ###""" | | ?????????????????????????????????????# #""" | +----------------------------------------------------+ Best States ------------- Heat Dissipation 31 Energy Generation 15 Energy Capacity 275 Matter Stores 300 Matter Capacity 300 Sight Range 21 Terrain Scan Density 10 Corruption Block 24 Armor Coverage 800 Evasion (%) 55 Targeting Accuracy 5 Offensive Hacking 11 Item Schematics ----------------- None Robot Schematics ------------------ None Fabricated ------------ Nothing Alien Tech Used ----------------- None Achievements -------------- None Challenges ------------ None Game ------ Seed PhaseWaveField Manual? 0 Play Time 00:33:19 Cumulative 14.8 hours Start 2024.08.30 @ 11:52:58 End 2024.08.30 @ 14:40:31 Sessions 2 Manual Loads 0 Difficulty Rogue Special Mode None Game No. 24 Rogue 24 Adventurer 0 Explorer 0 Win Type - Total 0 Types 0/0/0/0/0/0/0/0/0 Lore% 4 Gallery% 18 Achievement% 16 Wizard Run 0 Options --------- Layout 1 ASCII 0 Keyboard 0 Movement Arrows Keybinds 0 Fullscreen 2 Font 32/SmallcapsGlow Map View 50x35 Zoom Use 0% Tactical HUD 0 Map Filters NONE Filters NONE Steam 1 RUN: 87a5faa1-2ed8-427b-b4c9-a0aac100ba8e